Cogmind - Beta 15 @@@ ROGUE MODE // 2025.07.08 @ 21:10:59 Player: Dingot Result: Destroyed by G-47 Trooper with Particle Gun Performance ------------- Evolutions (3) 1500 Regions Visited (5) 1000 Robots Destroyed (71) 355 Value Destroyed (3160) 3160 Prototype IDs (2) 40 Alien Tech Used (0) 0 Bonus (1218) 1218 TOTAL SCORE: 7273 Bonus ------- High Alert Combat Kills 293 Follower Combat Kills 225 Entered Garrisons 200 Used RIF Installer 500 Cogmind --------- Core Integrity 0/700 Matter 189/300 Energy 100/100 System Corruption 4% Temperature Cool (9) Movement Core (200) Ox3 Location -7/Factory Parts ------- > --- POWER (1) -------- (None) > --- PROPULSION (4) --- (None) > --- UTILITY (6) ------ Propulsion Shielding Hacking Suite Authchip [R/Combat] Relay Coupler [Swarmer] (27) Relay Coupler [Hunter] (13) Corruption Screen > --- WEAPON (2) ------- Proton Missile Launcher Heavy Flail > --- INVENTORY (5) ---- Hardened Heavy Armor Plating Authchip [R/Combat] Authchip [R/Combat] Remote Datajack Peak State ------------ > --- POWER ------------ Light Nuclear Core > --- PROPULSION ------- Light Treads Light Treads Light Treads Light Treads > --- UTILITY ---------- High-capacity Storage Unit Improved Terrain Scanner Improved Utility Shielding Improved Shield Generator Authchip [R/Combat] Relay Coupler [NC] > --- WEAPON ----------- Shock Rifle Remote Datajack > --- INVENTORY -------- Light Treads Authchip [R/Combat] Authchip [R/Combat] Authchip [R/Combat] Authchip [R/Combat] Authchip [R/Combat] Authchip [R/Combat] Authchip [R/Combat] Authchip [R/Combat] Authchip [R/Combat] Authchip [R/Combat] Relay Coupler [Swarmer] Relay Coupler [Swarmer] Relay Coupler [Grunt] Relay Coupler [Hunter] Heavy Assault Rifle High-powered Shotgun [Rating: 36] Favorites ----------- Power Improved Ion Engine Engine Improved Ion Engine Power Core Micro Nuclear Core Propulsion Light Treads Treads Light Treads Utility Large Storage Unit Device Field Recycling Unit Storage Large Storage Unit Processor Corruption Screen Hackware Relay Coupler [NC] Protection Improved Utility Shielding Weapon High-powered Shotgun Energy Gun Advanced Beam Rifle Ballistic Gun High-powered Shotgun Launcher Rocket Launcher Special Weapon Remote Datajack Impact Weapon Heavy Flail Slashing Weapon Katana Build | -11 -10 -9 -8 -8 -7 ------- Run | Yrd Mat Mat Mat Gar Fac Slots Evolved 6 | . . 2 2 . 2 Power . | . . . . . . Propulsion 2 | . . 2 . . . Utility 4 | . . . 2 . 2 Weapon . | . . . . . . Parts Attached 80 | 2 7 5 8 27 31 Power 8 | . 1 1 1 3 2 Engine 6 | . 1 1 1 3 . Core 2 | . . . . . 2 Reactor . | . . . . . . Propulsion 16 | 2 . 1 4 8 1 Treads 16 | 2 . 1 4 8 1 Leg . | . . . . . . Wheel . | . . . . . . Hover . | . . . . . . Flight . | . . . . . . Utility 37 | . 4 1 . 11 21 Device 7 | . 2 . . 2 3 Storage 4 | . 1 1 . 1 1 Processor 1 | . . . . . 1 Hackware 15 | . . . . 2 13 Protection 10 | . 1 . . 6 3 Artifact . | . . . . . . Weapon 19 | . 2 2 3 5 7 Energy Gun 4 | . . . 1 . 3 Energy Cannon . | . . . . . . Ballistic Gun 8 | . 1 1 1 4 1 Ballistic Cannon . | . . . . . . Launcher 4 | . 1 . 1 1 1 Special Weapon 1 | . . . . . 1 Impact Weapon 1 | . . . . . 1 Slashing Weapon 1 | . . 1 . . . Piercing Weapon . | . . . . . . Special Melee Weapon . | . . . . . . Unidentified Prototypes 2 | . . . 1 . 1 Parts Lost 31 | . 2 4 3 10 12 Power 2 | . . 1 . . 1 Propulsion 11 | . . 2 1 5 3 Utility 8 | . 1 . 1 2 4 Weapon 10 | . 1 1 1 3 4 Highest Loss Streak 4 | . 2 2 2 4 4 To Critical Strikes . | . . . . . . Average Backups 8 | . 1 4 6 10 10 Power . | . . . . . . Propulsion . | . . . . 1 . Utility 6 | . 1 4 5 6 9 Weapon . | . . . 1 . . Tool/Special . | . . . . . . Unused Backups 8 | . . 1 . 2 5 Power . | . . . . . . Propulsion . | . . . . . . Utility 6 | . . 1 . 1 4 Weapon 1 | . . . . 1 . Tool/Special 1 | . . . . . 1 Average Slot Usage (%) 81 | . 69 74 63 92 75 Engine 6 | . 6 9 4 9 . Core 1 | . . . . . 4 Treads 28 | . 28 26 26 35 19 Device 6 | . 2 4 . 6 9 Storage 7 | . 9 1 9 9 5 Hackware 6 | . . . . 5 15 Protection 6 | . . 11 7 7 5 Energy Gun 3 | . . . . 5 3 Ballistic Gun 8 | . 10 17 4 9 4 Launcher 2 | . 10 . 2 2 . Slashing Weapon 1 | . . 3 9 . . Peak Build Rating 36 | 2 8 14 20 26 36 Average Rating 19 | 1 5 11 15 21 26 On Entrance 10 | . 2 8 8 18 25 Naked Turns . | . . . . . . Heaviest Build 59 | . 14 32 39 45 59 Greatest Support 80 | 40 40 60 80 80 80 Greatest Overweight (x) 19 | . . 1 1 . 19 Average Overweight (x) . | . . . . . . Largest Inventory Capacity 20 | 5 5 15 15 15 20 Average Capacity 13 | 5 5 6 15 15 16 Most Carried 17 | 2 5 6 8 15 17 Average Carried 8 | . 1 4 6 10 10 Final Capacity 15 | 5 5 15 15 15 5 Final Carried 15 | 1 4 6 8 15 5 Class Distribution -------------------- 47% | Mutant 44% | Scavenger-Mutant 8% | Bothacker-Mutant Dominant Class ---------------- Mutant | -10/Materials Mutant | -9/Materials Mutant | -8/Materials Scavenger-Mutant | -8/Garrison Scavenger-Mutant | -7/Factory Resources | -11 -10 -9 -8 -8 -7 ----------- Run | Yrd Mat Mat Mat Gar Fac Matter Collected 1968 | 127 143 298 196 796 408 Remotely . | . . . . . . Salvage Created 2525 | . 256 309 276 1190 494 Parts 141 | . 31 21 8 64 17 Haulers Intercepted . | . . . . . . Recyclers Shooed 1 | . . . . . 1 Parts Field Recycled 4 | . . . . 4 . Retrieved Matter 24 | . . . . 24 . Parts Self-Destructed . | . . . . . . Prevented . | . . . . . . Kills | -11 -10 -9 -8 -8 -7 ------- Run | Yrd Mat Mat Mat Gar Fac Combat Hostiles Destroyed 65 | . 15 7 5 29 9 Melee 6 | . . 1 5 . . Guns 40 | . 4 6 . 24 6 AOE 18 | . 11 . . 5 2 Classes Destroyed 10 | . 4 2 . 2 2 Worker 1 | . 1 . . . . Watcher 3 | . 2 1 . . . Swarmer 16 | . 9 . . 7 . Grunt 27 | . 6 5 2 10 4 Brawler 3 | . . . . 2 1 Duelist 2 | . . 1 . . 1 Sentry 14 | . . 1 3 10 . Specialist 1 | . . . . 1 . Hunter 1 | . . . . . 1 Programmer 3 | . . . . . 3 Best Kill Streak 6 | . 6 3 2 5 3 Combat Bots Only 6 | . 6 2 2 5 3 Max Kills in Single Turn 3 | . 3 1 1 2 2 Gunslinging . | . . . . . . Exploded 3 | . 3 . . 2 2 Melee 1 | . . 1 1 . . Uniques/NPCs Destroyed . | . . . . . . Combat | -11 -10 -9 -8 -8 -7 -------- Run | Yrd Mat Mat Mat Gar Fac Hostile Shots Fired 509 | . 63 52 40 142 212 Missed 131 | . 13 14 9 28 67 Hits 378 | . 50 38 31 114 145 Melee 29 | . . 3 . 10 16 Projectile 349 | . 50 35 31 104 129 AOE 2 | . . . 1 . 1 Critical Strikes 15 | . . 1 3 2 9 Actively Blocked 1 | . . . . . 1 Damage Taken 5373 | . 431 522 512 1921 1987 Core 1097 | . 70 37 58 232 700 Absorbed by Shields 323 | . 77 . . . 246 Redirected to Shielding 113 | . . . . 9 104 Core Remaining (%) 77 | 100 72 90 . 47 . Volleys Fired 236 | . 37 26 2 107 64 Largest 2 | . 1 2 1 2 2 Hottest 86 | . 30 43 25 86 75 Shots Fired 336 | . 37 50 2 174 73 Gun 309 | . 25 50 2 169 63 Cannon . | . . . . . . Launcher 18 | . 12 . . 5 1 Special 9 | . . . . . 9 Kinetic 219 | . 25 50 2 118 24 Thermal 51 | . . . . 51 . Explosive 17 | . 12 . . 5 . Electromagnetic 40 | . . . . . 40 Robot Hit Streak 22 | . 5 10 4 22 7 Robot Miss Streak 6 | . 2 4 . 5 6 Penetration Max . | . . . . . . Secondary Targets 3 | . . . . 3 . Max Gunslinging Chain 1 | . . . . 1 . Shots Hit Robots 247 | . 22 33 30 119 43 Core Hits 125 | . 21 13 7 66 18 Critical Kills . | . . . . . . Critical Parts Destroyed 1 | . . 1 . . . Critical Strikes 7 | . . 1 4 2 . Burn 2 | . . . . 2 . Destroy 1 | . . 1 . . . Sever 4 | . . . 4 . . Melee Attacks 37 | . . 1 31 4 1 Impact 1 | . . . . . 1 Slashing 36 | . . 1 31 4 . Piercing . | . . . . . . Sneak Attacks 1 | . . . . . 1 Combat Hostiles 1 | . . . . . 1 Follow-up Attacks . | . . . . . . Damage Inflicted 6259 | . 1403 494 927 2414 1021 Guns 3319 | . 219 457 54 1880 709 Cannons . | . . . . . . Explosions 1890 | . 1184 . . 472 234 Melee 1050 | . . 37 873 62 78 Ramming . | . . . . . . Kinetic 2315 | . 219 457 54 1220 365 Thermal 1154 | . 266 . . 660 228 Explosive 1390 | . 918 . . 472 . Electromagnetic 350 | . . . . . 350 Impact 78 | . . . . . 78 Slashing 972 | . . 37 873 62 . Piercing . | . . . . . . Highest Corruption 6 | . . . . 6 4 Average Corruption 4 | . . . . 4 2 Corruption Purged . | . . . . . . Corruption Blocked . | . . . . . . Effects 67 | . . . . 49 18 Message Errors 14 | . . . . 11 3 Matter Fused 15 | . . . . 9 6 Heat Flow Errors 10 | . . . . 7 3 Energy Discharges 4 | . . . . 3 1 Parts Rejected 2 | . . . . 1 1 Parts Fused 2 | . . . . . 2 Data Loss (minor) 6 | . . . . 6 . Data Loss (major) 5 | . . . . 5 . Misfires 5 | . . . . 4 1 Alerts 3 | . . . . 2 1 Weapon Failures 1 | . . . . 1 . Overload Shots . | . . . . . . Overflow Damage 192 | . 107 . 47 . 38 Projectiles . | . . . . . . Explosions 107 | . 107 . . . . Melee 85 | . . . 47 . 38 Knockbacks . | . . . . . . Impact . | . . . . . . Kinetic . | . . . . . . Secondary . | . . . . . . Self-Inflicted Damage 97 | . 65 . . 2 30 Shots 3 | . 1 . . 1 1 Rammed . | . . . . . . Targets Rammed . | . . . . . . Kicked . | . . . . . . Crushed . | . . . . . . Highest Temperature 266 | . 4 20 1 266 182 Average Temperature 57 | . 2 6 1 70 44 Received Heat Transfer 1537 | . 60 189 288 594 406 Effects 3 | . . . . 3 . Energy Bleed 2 | . . . . 2 . Interference 1 | . . . . 1 . Siege Activations . | . . . . . . Martial Activations . | . . . . . . Shielding Activations . | . . . . . . Robots Disrupted . | . . . . . . Combat Hostiles . | . . . . . . Robots Corrupted 1 | . . . . . 1 Combat Hostiles 1 | . . . . . 1 Parts Fried 2 | . . . . . 2 Impact Corruptions 1 | . . . . . 1 Robots Melted . | . . . . . . Combat Hostiles . | . . . . . . Parts Melted 2 | . . . . 2 . Heat Transferred 1695 | . 150 . . 1369 176 Parts Sabotaged . | . . . . . . Parts Stolen . | . . . . . . Parts Stripped . | . . . . . . Power Chain Reactions 1 | . . . . . 1 Alert | -11 -10 -9 -8 -8 -7 ------- Run | Yrd Mat Mat Mat Gar Fac Maximum Alert Level 4 | . 1 . . 4 3 Low Security (%) 38 | 100 56 100 100 30 . Level 1 20 | . 43 . . 21 27 Level 2 21 | . . . . 22 41 Level 3 18 | . . . . 22 31 Level 4 1 | . . . . 3 . Level 5 . | . . . . . . High Security . | . . . . . . Max Security . | . . . . . . Peak Influence 1121 | . 304 118 75 1121 861 Initial 588 | . . 118 9 29 588 Average 371 | . 169 40 26 443 564 Influence Increases 3234 | . 502 225 166 1232 1109 Destroy 0b10 Robot/C 1440 | . 300 140 100 580 320 Destroy 0b10 Robot/NC 50 | . 15 5 . 10 20 Destroy Leader 268 | . 64 42 40 30 92 Allied During Kill 55 | . . . . 10 45 Successful Hack 43 | . 5 8 11 7 12 Disable Machine 210 | . 45 . . . 165 Anti-Garrison Action 800 | . . . . 500 300 Destroy Structure 143 | . 73 . . 35 35 Partial Spotted 30 | . . . 15 15 . Lose Combat Pursuer 195 | . . 30 . 45 120 Influence Decreases 2377 | . 222 483 143 156 1373 Entered New Map 724 | . . 162 13 16 533 Time Decay 1132 | . 202 290 110 . 530 Lost Part 291 | . 20 31 20 100 120 Lost Ally 230 | . . . . 40 190 Squads Dispatched 19 | . 3 3 2 . 11 Investigation 2 | . 1 . . . 1 Extermination 3 | . . . . . 3 Reinforcement 6 | . 2 3 . . 1 Assault 5 | . . . . . 5 Garrison 3 | . . . 2 . 1 Intercept . | . . . . . . Searches Triggered . | . . . . . . Construction Impeded . | . . . . . . Haulers Reinforced . | . . . . . . Active Scanning Responses . | . . . . . . Cargo Convoy Interrupts . | . . . . . . Stealth | -11 -10 -9 -8 -8 -7 --------- Run | Yrd Mat Mat Mat Gar Fac Distress Signals 2 | . . 2 . . . Communications Jammed . | . . . . . . Distress Signals . | . . . . . . Times Spotted 114 | . 23 19 10 30 32 Peak Tracking Total 9 | . 4 4 4 5 9 Tactical Retreats 10 | . . 2 . 3 5 Traps | -11 -10 -9 -8 -8 -7 ------- Run | Yrd Mat Mat Mat Gar Fac Traps Triggered 7 | . 1 . . 5 1 Indirectly . | . . . . . . Trap Hack Attempts . | . . . . . . Triggered . | . . . . . . Disarmed . | . . . . . . Reprogrammed . | . . . . . . Reused . | . . . . . . Traps Extracted . | . . . . . . Installed . | . . . . . . Triggered . | . . . . . . Machines | -11 -10 -9 -8 -8 -7 ---------- Run | Yrd Mat Mat Mat Gar Fac Machines Disabled 18 | . 3 . . 2 13 Max in Single Turn 2 | . 2 . . 1 1 Garrison Access 2 | . . . . . 2 Garrison Relay 2 | . . . . 2 . Machines Repaired . | . . . . . . Machines Dismantled . | . . . . . . Machines Sabotaged . | . . . . . . Overloaded Fab Kills . | . . . . . . Hacking | -11 -10 -9 -8 -8 -7 --------- Run | Yrd Mat Mat Mat Gar Fac Machines Accessed 18 | . 4 4 2 3 5 Terminals 12 | . 3 2 1 3 3 Fabricators 2 | . . . . . 2 Repair Stations . | . . . . . . Recycling Units 2 | . 1 1 . . . Scanalyzers 1 | . . 1 . . . Garrison Access 1 | . . . 1 . . Total Hacks 72 | . 14 15 7 5 31 Successful 44 | . 5 10 5 1 23 Failed 28 | . 9 5 2 4 8 Catastrophic 6 | . 2 1 . 2 1 Database Lockouts . | . . . . . . Manual 27 | . 7 4 4 3 9 Terminals 37 | . 10 5 6 5 11 Fabricators 20 | . . . . . 20 Repair Stations . | . . . . . . Recycling Units 7 | . 4 3 . . . Scanalyzers 7 | . . 7 . . . Garrison Access 1 | . . . 1 . . Terminal Hacks 10 | . 2 1 3 1 3 Robot Schematic 1 | . . . . . 1 Open Door 1 | . . . . 1 . Open DSF 1 | . . . . . 1 Level Access Points 1 | . . 1 . . . Terminal Index 2 | . 1 . 1 . . Alert Level 2 | . 1 . 1 . . Zone Layout 2 | . . . 1 . 1 Fabricator Hacks 18 | . . . . . 18 Load Schematic 10 | . . . . . 10 Build 8 | . . . . . 8 Repair Station Hacks . | . . . . . . Recycling Unit Hacks 4 | . 2 2 . . . Report Inventory 2 | . 1 1 . . . Retrieve Components 2 | . 1 1 . . . Scanalyzer 6 | . . 6 . . . Insert Component 3 | . . 3 . . . Analyze 3 | . . 3 . . . Garrison Access Hacks 1 | . . . 1 . . Unlock Access 1 | . . . 1 . . Unauthorized Hacks 5 | . 1 1 1 . 2 Terminals 5 | . 1 1 1 . 2 Botnet 5 | . 1 1 1 . 2 Fabricators . | . . . . . . Repair Stations . | . . . . . . Recycling Units . | . . . . . . Scanalyzers . | . . . . . . Garrison Access . | . . . . . . Data Cores Recovered . | . . . . . . Used . | . . . . . . Hacking Detections 15 | . 4 4 1 3 3 Full Trace Events 2 | . . 1 . . 1 Feedback Events . | . . . . . . Feedback Blocked . | . . . . . . Robot Schematics Acquired 1 | . . . . . 1 Robots Built 6 | . . . . . 6 Authchips 8 | . . . . . 8 Time 464 | . . . . . 464 Total Robot Build Rating 18 | . . . . . 18 Part Schematics Acquired 3 | . . 3 . . . Parts Built . | . . . . . . Authchips . | . . . . . . Time . | . . . . . . Total Part Build Rating . | . . . . . . Parts Repaired . | . . . . . . Time . | . . . . . . Parts Recycled . | . . . . . . Recycled Matter . | . . . . . . Retrieved Matter . | . . . . . . Retrieved Components 3 | . 1 2 . . . Parts Scanalyzed 3 | . . 3 . . . Part Schematics Acquired 3 | . . 3 . . . Parts Damaged 1 | . . 1 . . . Bothacking | -11 -10 -9 -8 -8 -7 ------------ Run | Yrd Mat Mat Mat Gar Fac Used RIF Installer 1 | . . . . 1 . Robots Hacked 5 | . . . . . 5 Non-combat 2 | . . . . . 2 Combat 3 | . . . . . 3 Robot Hacks Applied 6 | . . . . . 6 parse_system 2 | . . . . . 2 link_fov 1 | . . . . . 1 amplify_resonance 1 | . . . . . 1 formatsys_low 1 | . . . . . 1 formatsys_high 1 | . . . . . 1 Relay Couplers Released 9 | . . . . 8 1 Machine Destruction 9 | . . . . 8 1 Attached 5 | . . . . 1 4 Fabnet Peak Effective % . | . . . . . . Robots Rewired 6 | . . . . 6 . Allies Hacked . | . . . . . . Hacks Repelled . | . . . . . . Allies | -11 -10 -9 -8 -8 -7 -------- Run | Yrd Mat Mat Mat Gar Fac Total Allies 14 | . . . . 6 8 Largest Group 5 | . . . . 3 5 Highest-Rated Group 101 | . . . . 101 101 Highest-Rated Ally 39 | . . . . 39 39 Total Orders 13 | . . . . 8 5 GUARD 5 | . . . . 5 . AID 8 | . . . . 3 5 Ally Attacks 73 | . . . . 10 63 Total Damage 1929 | . . . . 69 1860 Kills 11 | . . . . . 11 Allies Corrupted . | . . . . . . Allies Melted . | . . . . . . Intel | -11 -10 -9 -8 -8 -7 ------- Run | Yrd Mat Mat Mat Gar Fac Active Infowar (turns) 1514 | . . . . 648 866 Sensors 648 | . . . . 648 . Terrain 866 | . . . . . 866 Robot Analysis Total . | . . . . . . Derelict Logs Recovered . | . . . . . . Drone Launches . | . . . . . . Drone Recoveries . | . . . . . . Exploration | -11 -10 -9 -8 -8 -7 ------------- Run | Yrd Mat Mat Mat Gar Fac Turns Passed 5347 | 46 465 669 351 2323 1493 Spaces Moved 2635 | 34 235 345 119 1144 758 Core 335 | 11 . . . . 324 Treads 2300 | 23 235 345 119 1144 434 Legs . | . . . . . . Wheels . | . . . . . . Hover . | . . . . . . Flight . | . . . . . . Fastest Speed 50 | 50 160 160 165 160 50 Average Speed 155 | 124 160 162 177 161 140 Slowest Speed 1000 | 160 160 240 240 166 1000 Overloaded Moves . | . . . . . . Propulsion Burnouts . | . . . . . . Robots Hopped . | . . . . . . Potential Cave-ins . | . . . . . . Cave-ins Triggered 1 | . . . . 1 . Exploration Rate (%) 29 | 3 37 30 6 80 20 Regions Visited 5 Branch Regions . Pre-discovered Areas . | . . . . . . Known Exits Taken 2 | . . 1 1 . . Unknown Exits Taken 2 | 1 1 . . . . Scrap Searched . | . . . . . . Spaces Dug 3 | . 3 . . . . Terrain Destroyed 116 | . 86 . . 30 . Melee . | . . . . . . Projectile . | . . . . . . AOE 116 | . 86 . . 30 . Terrain Rammed . | . . . . . . Walls Destroyed . | . . . . . . Machines Disabled . | . . . . . . Actions | -11 -10 -9 -8 -8 -7 --------- Run | Yrd Mat Mat Mat Gar Fac Total 3507 | 38 288 410 210 1445 1116 Wait 322 | . . 21 41 27 233 Move 2625 | 33 234 344 119 1137 758 Hop . | . . . . . . Pick Up 67 | 3 9 7 9 31 8 Fast Attach 16 | . . 2 . 2 12 Attach 49 | 2 7 2 7 14 17 Detach 5 | . 1 . . 1 3 Swap 26 | . . 1 1 15 9 Drop 35 | . . 6 . 18 11 Fire 236 | . 37 26 2 107 64 Melee 37 | . . 1 31 4 1 Ram . | . . . . . . Kick . | . . . . . . Crush . | . . . . . . Escape Stasis . | . . . . . . Rewire 89 | . . . . 89 . Trap . | . . . . . . Miscellaneous . | . . . . . . Route ------- -11/Scrapyard -10/Materials (discovered 2 exits: *Mat / [*Min]) -9/Materials (discovered 3 exits: *Mat x3) -8/Materials -8/Garrison (discovered 4 exits: *Fac x3 / [*Mat]) -7/Factory History --------- Turn | Location | Event 5 | -11/Scrapyard | Discovered new exit (range 15) 47 | -11/Scrapyard | Entered Materials 153 | -10/Materials | Discovered new exit (range 16) 189 | -10/Materials | Discovered new exit (range 15) 302 | -10/Materials | Build established: Mutant 512 | -10/Materials | Entered another Materials area 512 | -9/Materials | Evolved 2 slots: Propulsion x2 1129 | -9/Materials | Identified exit to Materials 1181 | -9/Materials | Entered another Materials area 1181 | -8/Materials | Evolved 2 slots: Utility x2 1340 | -8/Materials | Garrison activated, responded to threat 1532 | -8/Materials | Identified exit to Garrison 1532 | -8/Materials | Entered Garrison 1574 | -8/Garrison | Triggered checkpoint 1587 | -8/Garrison | Discovered new exit (range 5) 1703 | -8/Garrison | Crushed by falling debris 1720 | -8/Garrison | Lost 3 allies 1888 | -8/Garrison | Triggered checkpoint 2034 | -8/Garrison | Triggered checkpoint 2152 | -8/Garrison | Triggered checkpoint 2212 | -8/Garrison | Triggered checkpoint 2239 | -8/Garrison | Lost 4 parts (1n2u1w) 2317 | -8/Garrison | Discovered new exit (range 12) 2470 | -8/Garrison | Discovered new exit (range 13) 2491 | -8/Garrison | Attempted to access garrison exit controls, blocked by remote lockdown 2561 | -8/Garrison | Build established: Scavenger-Mutant 2588 | -8/Garrison | Triggered checkpoint 2646 | -8/Garrison | Triggered checkpoint 2712 | -8/Garrison | Discovered new exit (range 13) 2841 | -8/Garrison | Attempted to access garrison exit controls, blocked by remote lockdown 2978 | -8/Garrison | Triggered checkpoint 3178 | -8/Garrison | Triggered checkpoint 3217 | -8/Garrison | Installed Relay Interface Framework 3244 | -8/Garrison | Core integrity fell below 50% 3378 | -8/Garrison | Garrison Relay disabled 3414 | -8/Garrison | Triggered checkpoint 3640 | -8/Garrison | Garrison Relay disabled 3855 | -8/Garrison | Entered Factory 3855 | -7/Factory | Accompanied by 3 allies 3855 | -7/Factory | Evolved 2 slots: Utility x2 4089 | -7/Factory | Lost 3 allies 4324 | -7/Factory | Fabricated H-55 Commando (x2) 4387 | -7/Factory | Fabricated H-55 Commando (x2) 4595 | -7/Factory | Garrison activated, responded to threat 4618 | -7/Factory | Fabricated H-55 Commando (x2) 4786 | -7/Factory | Lost 4 allies 4907 | -7/Factory | Lost 4 parts (2u2w) 5055 | -7/Factory | First assault squad dispatched 5090 | -7/Factory | Core integrity fell below 50% 5117 | -7/Factory | Lost 4 parts (1p1n1u1w) 5268 | -7/Factory | Core integrity fell below 20% 5348 | -7/Factory | Destroyed by G-47 Trooper with Particle Gun Last Messages --------------- effect. G-47 Trooper system terminally corrupted. Lgt. Nuclear Core fried. Particle Gun fried. Acquired 43 matter. C-30 ARC bursts open, deploying its payload. G-50 Soldier unfolds itself. B-48 Gladiator unfolds itself. I-36 Angel unfolds itself. Critical hit (Burn: +37). K-01 Serf cleans the TF Node. K-01 Serf cleans the Matter Pump. K-01 Serf cleans the TF Node. K-01 Serf cleans the Matter Pump. Acquired Proton Missile Launcher. ALERT: Garrison Access compromised, dispatching multiple assault carriers. Garrison Access disabled. OJJ=853FY:QDCBHL,KU,>EE&RUWFFUWGPTWRMXY U-05 Engineer lays Concrete. Map ----- +----------------------------------------------------+ | ?????????? ??????# #??????????????????????? | | ?????????????????# #??????????????????????? | | ?????????????????# #??????????????????????? | | ?????????????????# #??????????????????????? | | ?????????????????# #??????????????????????? | | ?????????????????# ! #??????????????????????? | | ???????###???????# #??????????????????????? | | ???????? ???????# #????###???????????????? | | ???????? ??????# #??? #???????????????? | | ???????? "??????######+###?? #???????????????? | | ????????? ???????????# #### #???????????????? | | ????????? ???????????# #???????????????? | | ?????????# ???????????# #???????????????? | | #????????# ???????????# ###???????????????? | | #??????### ###???????## #?????????????????? | | #??????# ######### #?????????????????? | | #??????# +?????????????????? | | #??????+ " ######### #?????????????????? | | #??????# ################# #?????????????????? | | #??????# # #?????? #?????????????????? | | #??????## ## #???????#?????????????????? | | #???????# ## "G" #?????????????????????????? | | #???????# ## " " #?????????????????????????? | | ######### ## #???????? #???????????????? | | ## g ##### #???????????????? | | ## """""" g @ p " +???????????????? | | """ ## """""" #####! #???????????????? | | """ ## """""" #???????? #???????????????? | | """ ### """""" #?????????????????????????? | | ## #?# #?????????????????????????? | | ?# """ #?# """""" #?????????????????????????? | | ?# """ ### """""" #?????????????????????????? | | ?# """ ## """""" ]#?????????????????????????? | | ?# ^ + """""" ??????????????????????????? | | ## """ ## #?????????????????????????? | | # """ ######/#####?????????????????????????? | | # """ #? ????????????????????????????? | | # ## ???????????????????????????? | | # """ ??????????????????????????? | | / """ #?????????????????????????? | | # """ ???????????????????????????? | | # ???????????????????????????? | | # % ???????????????????????????? | | ##### ##### ???????????????????????????? | | ##???# #???????? ??????????????????????????????? | | ?????# #???????????????????????????????????????? | | ?????# #???????????????????????????????????????? | | ###### ###########?????????????????????????????? | | # # #?????????????????????????????? | | """ # # """ """ #?????????????????????????????? | +----------------------------------------------------+ Best States ------------- Heat Dissipation 34 Energy Generation 15 Energy Capacity 275 Matter Stores 300 Matter Capacity 300 Sight Range 16 Robot Scan Range 15 Terrain Scan Range 16 Terrain Scan Density 10 Corruption Block 8 Armor Coverage 300 Propulsion Shielding 33 Utility Shielding 66 Evasion (%) 50 Recoil Reduction 4 Offensive Hacking 10 Relay Coupler Types 2 Relay Coupler Value 55 Authchip Count 11 Item Schematics ----------------- Imp. Sensor Array | -9/Materials | Scanalyzed Field Recycling Unit | -9/Materials | Scanalyzed Shield Generator | -9/Materials | Scanalyzed Robot Schematics ------------------ H-55 Commando | -7/Factory | Hacked Fabricated ------------ H-55 Commando | x2 | -7/Factory | Authchip H-55 Commando | x2 | -7/Factory | Authchip H-55 Commando | x2 | -7/Factory | Authchip Repaired ---------- Nothing Alien Tech Used ----------------- None Achievements -------------- A New Friend Assimilation Complete My Command Is Your Wish Significant Disruption The More The Merrier Troublemaker Challenges ------------ None Game ------ Seed GammaCooledPerforator Manual? 0 Play Time 01:49:44 Cumulative 10.6 hours Start 2025.07.08 @ 15:38:44 End 2025.07.08 @ 21:10:59 Sessions 5 Manual Loads 0 Difficulty Rogue Special Mode None Game No. 8 Rogue 8 Adventurer 0 Explorer 0 Win Type - Total 0 Types 0/0/0/0/0/0/0/0/0/0 Lore% 6 Gallery% 12 Achievement% 15 Wizard Run 0 Options --------- Layout 1 ASCII 0 Keyboard 0 Movement Mouse Keybinds 0 Fullscreen 1 Font 24/Smallcaps Map View 50x35 Zoom Use 0% Tactical HUD 0 Map Filters NONE Filters NONE Steam 1 RUN: 026f47bb-36aa-4041-b0d2-d2d78d2f3a88